[Event "Titled Tuesday Blitz March 15 Late 2022"]
[White "Sarana, Alexey"]
[Black "Tari, Aryan"]
[WhiteFideId "24133795"]
[BlackFideId "1510045"]
[WhiteElo "2666"]
[BlackElo "2567"]
[Result "0-1"]
[Round "06"]
[TimeControl "180+1"]
[Date "2022.03.15"]
[WhiteClock "0:00:20"]
[BlackClock "0:00:11"]

1. d4 {[%clk 0:03:00]}  d5 {[%clk 0:02:52]} 2. c4 {[%clk 0:02:58]}  e6 {[%clk 0:02:48]} 3. Nc3 {[%clk 0:02:58]}  c5 {[%clk 0:02:48]} 4. cxd5 {[%clk 0:02:57]}  cxd4 {[%clk 0:02:48]} 5. Qxd4 {[%clk 0:02:57]}  Nc6 {[%clk 0:02:48]} 6. Qd1 {[%clk 0:02:38]}  exd5 {[%clk 0:02:49]} 7. e3 {[%clk 0:02:36]}  Nf6 {[%clk 0:02:45]} 8. Nf3 {[%clk 0:02:36]}  Bb4 {[%clk 0:02:46]} 9. Bd2 {[%clk 0:02:34]}  O-O {[%clk 0:02:45]} 10. Be2 {[%clk 0:02:35]}  Ne4 {[%clk 0:02:33]} 11. O-O {[%clk 0:02:18]}  Bxc3 {[%clk 0:02:32]} 12. Bxc3 {[%clk 0:02:17]}  Nxc3 {[%clk 0:02:32]} 13. bxc3 {[%clk 0:02:18]}  Qf6 {[%clk 0:02:26]} 14. Nd4 {[%clk 0:02:18]}  Bd7 {[%clk 0:01:56]} 15. Qb3 {[%clk 0:02:17]}  Nxd4 {[%clk 0:01:34]} 16. cxd4 {[%clk 0:02:18]}  Bc6 {[%clk 0:01:22]} 17. Bf3 {[%clk 0:02:16]}  Qd6 {[%clk 0:01:22]} 18. Rfc1 {[%clk 0:02:16]}  Rac8 {[%clk 0:01:20]} 19. Rc2 {[%clk 0:02:13]}  Rc7 {[%clk 0:01:13]} 20. Rac1 {[%clk 0:02:13]}  Rfc8 {[%clk 0:01:12]} 21. g3 {[%clk 0:01:54]}  h6 {[%clk 0:01:13]} 22. h4 {[%clk 0:01:29]}  b6 {[%clk 0:01:12]} 23. Bg4 {[%clk 0:01:21]}  Bd7 {[%clk 0:01:06]} 24. Bxd7 {[%clk 0:00:44]}  Rxc2 {[%clk 0:01:05]} 25. Rxc2 {[%clk 0:00:45]}  Rxc2 {[%clk 0:01:06]} 26. Qxc2 {[%clk 0:00:45]}  Qxd7 {[%clk 0:01:06]} 27. Qc3 {[%clk 0:00:44]}  g5 {[%clk 0:01:05]} 28. hxg5 {[%clk 0:00:43]}  hxg5 {[%clk 0:01:06]} 29. Kg2 {[%clk 0:00:40]}  Kg7 {[%clk 0:01:06]} 30. f3 {[%clk 0:00:39]}  Qb5 {[%clk 0:00:54]} 31. Qd2 {[%clk 0:00:37]}  Kg6 {[%clk 0:00:53]} 32. e4 {[%clk 0:00:38]}  Qc4 {[%clk 0:00:49]} 33. exd5 {[%clk 0:00:38]}  Qxd5 {[%clk 0:00:48]} 34. a3 {[%clk 0:00:38]}  g4 {[%clk 0:00:48]} 35. Qd3+ {[%clk 0:00:37]}  f5 {[%clk 0:00:48]} 36. Kf2 {[%clk 0:00:31]}  Qxf3+ {[%clk 0:00:43]} 37. Qxf3 {[%clk 0:00:32]}  gxf3 {[%clk 0:00:44]} 38. Kxf3 {[%clk 0:00:32]}  Kf6 {[%clk 0:00:45]} 39. g4 {[%clk 0:00:28]}  fxg4+ {[%clk 0:00:44]} 40. Kxg4 {[%clk 0:00:28]}  Ke6 {[%clk 0:00:45]} 41. Kf4 {[%clk 0:00:29]}  Kd5 {[%clk 0:00:43]} 42. Ke3 {[%clk 0:00:30]}  b5 {[%clk 0:00:42]} 43. Kd3 {[%clk 0:00:30]}  a5 {[%clk 0:00:42]} 44. Ke3 {[%clk 0:00:20]}  Kc4 {[%clk 0:00:41]} 45. d5 {[%clk 0:00:20]}  Kxd5 {[%clk 0:00:36]} 46. Kd3 {[%clk 0:00:20]}  Ke5 {[%clk 0:00:34]} 47. Ke3 {[%clk 0:00:21]}  Kd5 {[%clk 0:00:15]} 48. Kd3 {[%clk 0:00:21]}  Kc6 {[%clk 0:00:13]} 49. Kc2 {[%clk 0:00:21]}  Kd6 {[%clk 0:00:12]} 50. Kd2 {[%clk 0:00:22]}  Ke6 {[%clk 0:00:12]} 51. Ke2 {[%clk 0:00:22]}  Kf6 {[%clk 0:00:13]} 52. Kf2 {[%clk 0:00:23]}  b4 {[%clk 0:00:11]} 53. a4 {[%clk 0:00:23]}  Ke5 {[%clk 0:00:10]} 54. Ke3 {[%clk 0:00:23]}  Kd5 {[%clk 0:00:11]} 55. Kd3 {[%clk 0:00:23]}  Kc5 {[%clk 0:00:11]} 56. Kc2 {[%clk 0:00:24]}  Kc4 {[%clk 0:00:12]} 57. Kb2 {[%clk 0:00:25]}  Kd3 {[%clk 0:00:11]} 58. Kb3 {[%clk 0:00:25]}  Kd4 {[%clk 0:00:10]} 59. Kc2 {[%clk 0:00:25]}  Ke4 {[%clk 0:00:08]} 60. Kb2 {[%clk 0:00:24]}  Kf3 {[%clk 0:00:07]} 61. Kc2 {[%clk 0:00:22]}  Ke2 {[%clk 0:00:07]} 62. Kb2 {[%clk 0:00:17]}  Kd2 {[%clk 0:00:07]} 63. Kb3 {[%clk 0:00:16]}  Kc1 {[%clk 0:00:07]} 64. Kc4 {[%clk 0:00:14]}  Kc2 {[%clk 0:00:08]} 65. Kb5 {[%clk 0:00:15]}  b3 {[%clk 0:00:09]} 66. Kxa5 {[%clk 0:00:15]}  b2 {[%clk 0:00:09]} 67. Ka6 {[%clk 0:00:16]}  b1=Q {[%clk 0:00:10]} 68. a5 {[%clk 0:00:17]}  Qb4 {[%clk 0:00:11]} 69. Ka7 {[%clk 0:00:18]}  Qxa5+ {[%clk 0:00:11]} 70. Kb8 {[%clk 0:00:19]}  Qc5 {[%clk 0:00:11]} 71. Ka8 {[%clk 0:00:20]}  Qe7 {[%clk 0:00:11]} 0-1


[Site "https://www.chess.com"]

[Event "Titled Tuesday Blitz March 15 Late 2022"]
[White "Senft, Sean"]
[Black "Sanchez Alvares, Kelvin Antonio"]
[WhiteFideId "2044960"]
[BlackFideId "3906680"]
[WhiteElo "1881"]
[BlackElo "2193"]
[Result "0-1"]
[Round "06"]
[TimeControl "180+1"]
[Date "2022.03.16"]
[WhiteClock "0:00:04"]
[BlackClock "0:00:23"]

1. d4 {[%clk 0:02:49]}  d5 {[%clk 0:02:59]} 2. c4 {[%clk 0:02:44]}  c6 {[%clk 0:02:59]} 3. Nc3 {[%clk 0:02:45]}  Nf6 {[%clk 0:02:59]} 4. Nf3 {[%clk 0:02:46]}  e6 {[%clk 0:02:59]} 5. cxd5 {[%clk 0:02:47]}  exd5 {[%clk 0:02:59]} 6. Bg5 {[%clk 0:02:47]}  Be7 {[%clk 0:02:59]} 7. Qc2 {[%clk 0:02:48]}  g6 {[%clk 0:02:58]} 8. e3 {[%clk 0:02:49]}  Bf5 {[%clk 0:02:59]} 9. Bd3 {[%clk 0:02:49]}  Bxd3 {[%clk 0:02:59]} 10. Qxd3 {[%clk 0:02:50]}  Nbd7 {[%clk 0:02:59]} 11. O-O {[%clk 0:02:51]}  O-O {[%clk 0:02:59]} 12. Rab1 {[%clk 0:02:50]}  a5 {[%clk 0:02:59]} 13. Na4 {[%clk 0:02:49]}  b5 {[%clk 0:02:56]} 14. Nc5 {[%clk 0:02:43]}  Nxc5 {[%clk 0:02:50]} 15. dxc5 {[%clk 0:02:44]}  Ne4 {[%clk 0:02:48]} 16. Bxe7 {[%clk 0:02:43]}  Qxe7 {[%clk 0:02:47]} 17. Rfc1 {[%clk 0:02:20]}  Nxc5 {[%clk 0:02:46]} 18. Qc2 {[%clk 0:02:17]}  Na4 {[%clk 0:02:33]} 19. b3 {[%clk 0:02:07]}  Nb6 {[%clk 0:02:28]} 20. Qxc6 {[%clk 0:02:08]}  Rab8 {[%clk 0:02:24]} 21. Qxb5 {[%clk 0:02:04]}  a4 {[%clk 0:01:52]} 22. bxa4 {[%clk 0:02:01]}  Qd8 {[%clk 0:01:46]} 23. h3 {[%clk 0:01:14]}  Nc4 {[%clk 0:01:35]} 24. Qxb8 {[%clk 0:01:14]}  Qxb8 {[%clk 0:01:36]} 25. Rxb8 {[%clk 0:01:14]}  Rxb8 {[%clk 0:01:36]} 26. Rd1 {[%clk 0:01:15]}  Rb2 {[%clk 0:01:33]} 27. Rxd5 {[%clk 0:01:10]}  Rxa2 {[%clk 0:01:33]} 28. Rd8+ {[%clk 0:01:11]}  Kg7 {[%clk 0:01:33]} 29. Ra8 {[%clk 0:01:11]}  Nb6 {[%clk 0:01:31]} 30. Ra6 {[%clk 0:01:08]}  Nxa4 {[%clk 0:01:31]} 31. Kh2 {[%clk 0:00:54]}  h6 {[%clk 0:01:28]} 32. Kg3 {[%clk 0:00:51]}  Nc3 {[%clk 0:01:26]} 33. Rxa2 {[%clk 0:00:51]}  Nxa2 {[%clk 0:01:27]} 34. Kf4 {[%clk 0:00:50]}  Kf6 {[%clk 0:01:27]} 35. g4 {[%clk 0:00:48]}  Nc3 {[%clk 0:01:26]} 36. e4 {[%clk 0:00:36]}  Nd1 {[%clk 0:01:19]} 37. Kg3 {[%clk 0:00:22]}  Nc3 {[%clk 0:01:17]} 38. Nd2 {[%clk 0:00:22]}  Ke5 {[%clk 0:01:10]} 39. f4+ {[%clk 0:00:20]}  Kd4 {[%clk 0:01:08]} 40. e5 {[%clk 0:00:19]}  Nd5 {[%clk 0:00:53]} 41. Nf3+ {[%clk 0:00:19]}  Ke4 {[%clk 0:00:49]} 42. h4 {[%clk 0:00:17]}  Nxf4 {[%clk 0:00:46]} 43. Nd2+ {[%clk 0:00:17]}  Kxe5 {[%clk 0:00:46]} 44. Nf3+ {[%clk 0:00:17]}  Ke4 {[%clk 0:00:46]} 45. Nd2+ {[%clk 0:00:18]}  Ke3 {[%clk 0:00:46]} 46. Nc4+ {[%clk 0:00:17]}  Kd4 {[%clk 0:00:35]} 47. Kxf4 {[%clk 0:00:11]}  Kxc4 {[%clk 0:00:35]} 48. Ke5 {[%clk 0:00:12]}  Kd3 {[%clk 0:00:36]} 49. Kf6 {[%clk 0:00:12]}  Ke4 {[%clk 0:00:35]} 50. Kxf7 {[%clk 0:00:09]}  g5 {[%clk 0:00:35]} 51. h5 {[%clk 0:00:05]}  Kf4 {[%clk 0:00:35]} 52. Kg6 {[%clk 0:00:06]}  Kxg4 {[%clk 0:00:35]} 53. Kxh6 {[%clk 0:00:06]}  Kf5 {[%clk 0:00:34]} 54. Kg7 {[%clk 0:00:06]}  g4 {[%clk 0:00:35]} 55. h6 {[%clk 0:00:07]}  g3 {[%clk 0:00:36]} 56. h7 {[%clk 0:00:08]}  g2 {[%clk 0:00:36]} 57. h8=Q {[%clk 0:00:08]}  g1=Q+ {[%clk 0:00:37]} 58. Kh7 {[%clk 0:00:08]}  Qh2+ {[%clk 0:00:32]} 59. Kg8 {[%clk 0:00:09]}  Qa2+ {[%clk 0:00:30]} 60. Kf8 {[%clk 0:00:07]}  Qa8+ {[%clk 0:00:27]} 61. Kg7 {[%clk 0:00:07]}  Qb7+ {[%clk 0:00:26]} 62. Kh6 {[%clk 0:00:06]}  Qc6+ {[%clk 0:00:24]} 63. Kg7 {[%clk 0:00:04]}  Qd7+ {[%clk 0:00:24]} 64. Kg8 {[%clk 0:00:04]}  Kg6 {[%clk 0:00:23]} 0-1


[Site "https://www.chess.com"]

[Event "Titled Tuesday Blitz March 15 Late 2022"]
[White "Sochacki, Christophe"]
[Black "Jeet, Jain"]
[WhiteFideId "662569"]
[BlackFideId "5073022"]
[WhiteElo "2480"]
[BlackElo "2085"]
[Result "1-0"]
[Round "06"]
[TimeControl "180+1"]
[Date "2022.03.16"]
[WhiteClock "0:00:44"]
[BlackClock "0:00:01"]

1. b3 {[%clk 0:02:51]}  Nf6 {[%clk 0:02:58]} 2. Bb2 {[%clk 0:02:52]}  c5 {[%clk 0:02:58]} 3. Nf3 {[%clk 0:02:52]}  Nc6 {[%clk 0:02:58]} 4. e3 {[%clk 0:02:53]}  g6 {[%clk 0:02:59]} 5. d4 {[%clk 0:02:53]}  cxd4 {[%clk 0:02:59]} 6. Nxd4 {[%clk 0:02:53]}  Bg7 {[%clk 0:02:59]} 7. c4 {[%clk 0:02:54]}  O-O {[%clk 0:02:58]} 8. Be2 {[%clk 0:02:54]}  d5 {[%clk 0:02:58]} 9. O-O {[%clk 0:02:53]}  dxc4 {[%clk 0:02:58]} 10. Bxc4 {[%clk 0:02:52]}  Nxd4 {[%clk 0:02:56]} 11. Qxd4 {[%clk 0:02:53]}  Nh5 {[%clk 0:02:45]} 12. Qxd8 {[%clk 0:02:52]}  Rxd8 {[%clk 0:02:46]} 13. Bxg7 {[%clk 0:02:53]}  Nxg7 {[%clk 0:02:46]} 14. Nc3 {[%clk 0:02:53]}  Be6 {[%clk 0:02:46]} 15. Bxe6 {[%clk 0:02:43]}  Nxe6 {[%clk 0:02:47]} 16. Rfd1 {[%clk 0:02:44]}  Rac8 {[%clk 0:02:44]} 17. Rxd8+ {[%clk 0:02:43]}  Nxd8 {[%clk 0:02:44]} 18. Rc1 {[%clk 0:02:06]}  Kg7 {[%clk 0:02:37]} 19. Kf1 {[%clk 0:02:07]}  f5 {[%clk 0:02:31]} 20. Ke2 {[%clk 0:02:07]}  e5 {[%clk 0:02:30]} 21. Rd1 {[%clk 0:01:49]}  Rxc3 {[%clk 0:02:23]} 22. Rxd8 {[%clk 0:01:49]}  Rc2+ {[%clk 0:02:21]} 23. Rd2 {[%clk 0:01:49]}  Rxd2+ {[%clk 0:02:16]} 24. Kxd2 {[%clk 0:01:50]}  Kf6 {[%clk 0:02:17]} 25. Kd3 {[%clk 0:01:37]}  Ke6 {[%clk 0:02:14]} 26. e4 {[%clk 0:01:26]}  f4 {[%clk 0:01:47]} 27. Kc4 {[%clk 0:01:23]}  Kd6 {[%clk 0:01:36]} 28. Kb5 {[%clk 0:01:22]}  g5 {[%clk 0:01:29]} 29. f3 {[%clk 0:00:57]}  h6 {[%clk 0:01:26]} 30. a3 {[%clk 0:00:55]}  h5 {[%clk 0:01:15]} 31. h3 {[%clk 0:00:54]}  h4 {[%clk 0:00:35]} 32. b4 {[%clk 0:00:50]}  Kd7 {[%clk 0:00:12]} 33. Kc5 {[%clk 0:00:46]}  Ke6 {[%clk 0:00:12]} 34. a4 {[%clk 0:00:45]}  g4 {[%clk 0:00:01]} 35. hxg4 {[%clk 0:00:44]} 1-0


[Site "https://www.chess.com"]

[Event "Titled Tuesday Blitz March 15 Late 2022"]
[White "Svane, Rasmus"]
[Black "Nakamura, Hikaru"]
[WhiteFideId "4657101"]
[BlackFideId "2016192"]
[WhiteElo "2645"]
[BlackElo "2850"]
[Result "0-1"]
[Round "06"]
[TimeControl "180+1"]
[Date "2022.03.15"]
[WhiteClock "0:00:07"]
[BlackClock "0:00:15"]

1. Nf3 {[%clk 0:03:00]}  g6 {[%clk 0:02:57]} 2. e4 {[%clk 0:02:59]}  c5 {[%clk 0:02:57]} 3. d4 {[%clk 0:02:57]}  cxd4 {[%clk 0:02:58]} 4. Nxd4 {[%clk 0:02:58]}  Nf6 {[%clk 0:02:58]} 5. Nc3 {[%clk 0:02:52]}  d6 {[%clk 0:02:58]} 6. Be3 {[%clk 0:02:51]}  Bg7 {[%clk 0:02:57]} 7. f3 {[%clk 0:02:52]}  a6 {[%clk 0:02:56]} 8. Qd2 {[%clk 0:02:50]}  b5 {[%clk 0:02:51]} 9. a3 {[%clk 0:02:50]}  Bb7 {[%clk 0:02:49]} 10. O-O-O {[%clk 0:02:50]}  Nbd7 {[%clk 0:02:48]} 11. h4 {[%clk 0:02:50]}  h5 {[%clk 0:02:47]} 12. Be2 {[%clk 0:02:50]}  Rc8 {[%clk 0:02:47]} 13. Kb1 {[%clk 0:02:50]}  Qc7 {[%clk 0:02:43]} 14. Bg5 {[%clk 0:02:49]}  Nb6 {[%clk 0:02:43]} 15. Rhe1 {[%clk 0:02:48]}  O-O {[%clk 0:02:38]} 16. Bh6 {[%clk 0:02:28]}  Qc5 {[%clk 0:02:19]} 17. Nb3 {[%clk 0:02:23]}  Qc7 {[%clk 0:02:17]} 18. Nd4 {[%clk 0:02:21]}  Qd7 {[%clk 0:01:57]} 19. Bxg7 {[%clk 0:02:19]}  Kxg7 {[%clk 0:01:57]} 20. Qg5 {[%clk 0:02:20]}  Nh7 {[%clk 0:01:21]} 21. Qe3 {[%clk 0:02:08]}  Qc7 {[%clk 0:01:16]} 22. g4 {[%clk 0:02:06]}  e5 {[%clk 0:01:05]} 23. Nb3 {[%clk 0:01:51]}  Nf6 {[%clk 0:01:03]} 24. g5 {[%clk 0:01:39]}  Nfd7 {[%clk 0:01:04]} 25. Bf1 {[%clk 0:01:37]}  Na4 {[%clk 0:01:01]} 26. Rd3 {[%clk 0:01:31]}  Ndb6 {[%clk 0:00:58]} 27. Qc1 {[%clk 0:01:26]}  Rfd8 {[%clk 0:00:49]} 28. Bh3 {[%clk 0:01:26]}  Rb8 {[%clk 0:00:49]} 29. f4 {[%clk 0:01:23]}  Nc4 {[%clk 0:00:47]} 30. Nd1 {[%clk 0:01:12]}  d5 {[%clk 0:00:43]} 31. exd5 {[%clk 0:01:07]}  Bxd5 {[%clk 0:00:40]} 32. fxe5 {[%clk 0:01:07]}  Naxb2 {[%clk 0:00:29]} 33. Nxb2 {[%clk 0:01:02]}  Nxa3+ {[%clk 0:00:29]} 34. Ka2 {[%clk 0:01:01]}  Nxc2 {[%clk 0:00:30]} 35. Qd2 {[%clk 0:00:45]}  a5 {[%clk 0:00:18]} 36. Rc1 {[%clk 0:00:24]}  a4 {[%clk 0:00:16]} 37. Kb1 {[%clk 0:00:19]}  axb3 {[%clk 0:00:16]} 38. Nd1 {[%clk 0:00:07]}  Qa7 {[%clk 0:00:15]} 39. Qc3 {[%clk 0:00:07]}  b4 {[%clk 0:00:14]} 40. Qxc2 {[%clk 0:00:07]}  bxc2+ {[%clk 0:00:15]} 0-1


[Site "https://www.chess.com"]

[Event "Titled Tuesday Blitz March 15 Late 2022"]
[White "Swicarz, Maciej"]
[Black "Beerdsen, Thomas"]
[WhiteFideId "1113585"]
[BlackFideId "1030108"]
[WhiteElo "2057"]
[BlackElo "2585"]
[Result "1-0"]
[Round "06"]
[TimeControl "180+1"]
[Date "2022.03.16"]
[WhiteClock "0:00:13"]
[BlackClock "0:00:05"]

1. c4 {[%clk 0:02:48]}  g5 {[%clk 0:02:58]} 2. d4 {[%clk 0:02:47]}  g4 {[%clk 0:02:58]} 3. h3 {[%clk 0:02:45]}  g3 {[%clk 0:02:57]} 4. fxg3 {[%clk 0:02:45]}  c5 {[%clk 0:02:57]} 5. e3 {[%clk 0:02:43]}  cxd4 {[%clk 0:02:56]} 6. exd4 {[%clk 0:02:43]}  d5 {[%clk 0:02:57]} 7. cxd5 {[%clk 0:02:41]}  Nf6 {[%clk 0:02:57]} 8. Bb5+ {[%clk 0:02:38]}  Bd7 {[%clk 0:02:57]} 9. Bc4 {[%clk 0:02:36]}  Rg8 {[%clk 0:02:56]} 10. Ne2 {[%clk 0:02:35]}  Qc7 {[%clk 0:02:47]} 11. Qb3 {[%clk 0:02:26]}  Na6 {[%clk 0:02:23]} 12. d6 {[%clk 0:02:20]}  Qa5+ {[%clk 0:02:19]} 13. Bd2 {[%clk 0:02:20]}  Qh5 {[%clk 0:02:17]} 14. Qxb7 {[%clk 0:02:15]}  Rb8 {[%clk 0:02:15]} 15. Qxa6 {[%clk 0:02:13]}  Ne4 {[%clk 0:02:02]} 16. Qxa7 {[%clk 0:02:05]}  Rc8 {[%clk 0:02:00]} 17. Ba6 {[%clk 0:02:01]}  Rd8 {[%clk 0:01:57]} 18. Ba5 {[%clk 0:01:54]}  Qxa5+ {[%clk 0:01:56]} 19. Nbc3 {[%clk 0:01:50]}  Nxg3 {[%clk 0:01:50]} 20. Nxg3 {[%clk 0:01:43]}  Rxg3 {[%clk 0:01:51]} 21. O-O {[%clk 0:01:43]}  Bc6 {[%clk 0:01:28]} 22. d5 {[%clk 0:01:38]}  Bd7 {[%clk 0:01:18]} 23. Rae1 {[%clk 0:01:31]}  Rg6 {[%clk 0:01:07]} 24. Qf2 {[%clk 0:01:23]}  f5 {[%clk 0:00:58]} 25. Bd3 {[%clk 0:01:14]}  Rf6 {[%clk 0:00:51]} 26. dxe7 {[%clk 0:01:12]}  Bxe7 {[%clk 0:00:52]} 27. d6 {[%clk 0:01:12]}  Rxd6 {[%clk 0:00:50]} 28. Bxf5 {[%clk 0:01:10]}  Qb6 {[%clk 0:00:40]} 29. Bxd7+ {[%clk 0:01:02]}  R8xd7 {[%clk 0:00:38]} 30. Qxb6 {[%clk 0:00:56]}  Rxb6 {[%clk 0:00:39]} 31. Re2 {[%clk 0:00:57]}  Kd8 {[%clk 0:00:37]} 32. Rd1 {[%clk 0:00:55]}  Bf6 {[%clk 0:00:33]} 33. Red2 {[%clk 0:00:48]}  Rxd2 {[%clk 0:00:31]} 34. Rxd2+ {[%clk 0:00:49]}  Kc8 {[%clk 0:00:30]} 35. Kf2 {[%clk 0:00:43]}  Bg5 {[%clk 0:00:26]} 36. Rc2 {[%clk 0:00:43]}  Kb7 {[%clk 0:00:27]} 37. Ne4 {[%clk 0:00:42]}  Be7 {[%clk 0:00:27]} 38. b3 {[%clk 0:00:42]}  h5 {[%clk 0:00:26]} 39. g4 {[%clk 0:00:41]}  hxg4 {[%clk 0:00:26]} 40. hxg4 {[%clk 0:00:42]}  Rh6 {[%clk 0:00:27]} 41. Kg3 {[%clk 0:00:39]}  Rh1 {[%clk 0:00:26]} 42. Kf4 {[%clk 0:00:38]}  Rf1+ {[%clk 0:00:27]} 43. Ke5 {[%clk 0:00:38]}  Re1 {[%clk 0:00:26]} 44. Rd2 {[%clk 0:00:37]}  Bb4 {[%clk 0:00:25]} 45. Rd5 {[%clk 0:00:33]}  Kc6 {[%clk 0:00:25]} 46. Rd3 {[%clk 0:00:31]}  Re2 {[%clk 0:00:22]} 47. a4 {[%clk 0:00:31]}  Ba5 {[%clk 0:00:20]} 48. g5 {[%clk 0:00:30]}  Bc7+ {[%clk 0:00:21]} 49. Kf5 {[%clk 0:00:30]}  Re1 {[%clk 0:00:19]} 50. g6 {[%clk 0:00:29]}  Rf1+ {[%clk 0:00:20]} 51. Kg4 {[%clk 0:00:26]}  Re1 {[%clk 0:00:21]} 52. Ng5 {[%clk 0:00:24]}  Rg1+ {[%clk 0:00:21]} 53. Kf5 {[%clk 0:00:24]}  Rf1+ {[%clk 0:00:21]} 54. Ke6 {[%clk 0:00:24]}  Rg1 {[%clk 0:00:19]} 55. Kf6 {[%clk 0:00:21]}  Bf4 {[%clk 0:00:10]} 56. Nf3 {[%clk 0:00:17]}  Rg4 {[%clk 0:00:06]} 57. Kf5 {[%clk 0:00:14]}  Rxg6 {[%clk 0:00:05]} 58. Kxg6 {[%clk 0:00:13]} 1-0


[Site "https://www.chess.com"]

[Event "Titled Tuesday Blitz March 15 Late 2022"]
[White "Tabatabaei, M. Amin"]
[Black "Holt, Conrad"]
[WhiteFideId "12521213"]
[BlackFideId "2034387"]
[WhiteElo "2544"]
[BlackElo "2586"]
[Result "1-0"]
[Round "06"]
[TimeControl "180+1"]
[Date "2022.03.15"]
[WhiteClock "0:00:05"]
[BlackClock "0:00:08"]

1. d4 {[%clk 0:02:55]}  d5 {[%clk 0:03:00]} 2. Nf3 {[%clk 0:02:55]}  Nf6 {[%clk 0:03:00]} 3. c3 {[%clk 0:02:56]}  Bf5 {[%clk 0:02:59]} 4. Qb3 {[%clk 0:02:54]}  Qc8 {[%clk 0:02:56]} 5. c4 {[%clk 0:02:53]}  e6 {[%clk 0:02:53]} 6. cxd5 {[%clk 0:02:53]}  exd5 {[%clk 0:02:53]} 7. Nc3 {[%clk 0:02:54]}  c6 {[%clk 0:02:52]} 8. Bf4 {[%clk 0:02:54]}  Be7 {[%clk 0:02:50]} 9. Rc1 {[%clk 0:02:54]}  O-O {[%clk 0:02:49]} 10. h3 {[%clk 0:02:53]}  Nbd7 {[%clk 0:02:39]} 11. e3 {[%clk 0:02:53]}  Re8 {[%clk 0:02:38]} 12. Nb5 {[%clk 0:02:31]}  cxb5 {[%clk 0:02:23]} 13. Rxc8 {[%clk 0:02:32]}  Rexc8 {[%clk 0:02:23]} 14. Be2 {[%clk 0:02:27]}  Rc1+ {[%clk 0:02:03]} 15. Bd1 {[%clk 0:02:27]}  Bc2 {[%clk 0:02:01]} 16. Qxc2 {[%clk 0:02:26]}  Rxc2 {[%clk 0:02:01]} 17. Bxc2 {[%clk 0:02:27]}  Rc8 {[%clk 0:01:58]} 18. Kd1 {[%clk 0:02:19]}  Nb6 {[%clk 0:01:55]} 19. Bf5 {[%clk 0:01:45]}  Rc4 {[%clk 0:01:43]} 20. Bd3 {[%clk 0:01:42]}  Ra4 {[%clk 0:01:43]} 21. Bb1 {[%clk 0:01:34]}  Rc4 {[%clk 0:01:19]} 22. Ne5 {[%clk 0:01:34]}  Rc8 {[%clk 0:01:08]} 23. Bf5 {[%clk 0:01:34]}  Re8 {[%clk 0:01:05]} 24. Ke2 {[%clk 0:01:33]}  Ne4 {[%clk 0:01:03]} 25. f3 {[%clk 0:01:27]}  Nd6 {[%clk 0:00:57]} 26. Bd3 {[%clk 0:01:28]}  Na4 {[%clk 0:00:49]} 27. b3 {[%clk 0:01:11]}  Nc3+ {[%clk 0:00:23]} 28. Kd2 {[%clk 0:01:11]}  Rc8 {[%clk 0:00:18]} 29. Rc1 {[%clk 0:01:06]}  b4 {[%clk 0:00:09]} 30. Rc2 {[%clk 0:00:46]}  g6 {[%clk 0:00:07]} 31. Ng4 {[%clk 0:00:42]}  a5 {[%clk 0:00:05]} 32. Nf2 {[%clk 0:00:41]}  Rc6 {[%clk 0:00:04]} 33. Nd1 {[%clk 0:00:38]}  Ndb5 {[%clk 0:00:04]} 34. Bxb5 {[%clk 0:00:21]}  Nxb5 {[%clk 0:00:05]} 35. Kd3 {[%clk 0:00:21]}  Na3 {[%clk 0:00:04]} 36. Rxc6 {[%clk 0:00:18]}  bxc6 {[%clk 0:00:05]} 37. Nb2 {[%clk 0:00:18]}  Nb5 {[%clk 0:00:04]} 38. Na4 {[%clk 0:00:19]}  Kf8 {[%clk 0:00:04]} 39. e4 {[%clk 0:00:19]}  Ke8 {[%clk 0:00:04]} 40. Bd2 {[%clk 0:00:18]}  dxe4+ {[%clk 0:00:04]} 41. fxe4 {[%clk 0:00:18]}  Bf6 {[%clk 0:00:04]} 42. Be3 {[%clk 0:00:18]}  Kd8 {[%clk 0:00:04]} 43. Nb2 {[%clk 0:00:17]}  Kd7 {[%clk 0:00:03]} 44. Nc4 {[%clk 0:00:17]}  Bd8 {[%clk 0:00:03]} 45. Bd2 {[%clk 0:00:14]}  Bc7 {[%clk 0:00:03]} 46. d5 {[%clk 0:00:13]}  f5 {[%clk 0:00:02]} 47. dxc6+ {[%clk 0:00:09]}  Kxc6 {[%clk 0:00:03]} 48. exf5 {[%clk 0:00:09]}  gxf5 {[%clk 0:00:04]} 49. Ne3 {[%clk 0:00:08]}  Nd6 {[%clk 0:00:04]} 50. Be1 {[%clk 0:00:08]}  Bb6 {[%clk 0:00:04]} 51. Nc4 {[%clk 0:00:06]}  Bc7 {[%clk 0:00:03]} 52. Nxd6 {[%clk 0:00:04]}  Bxd6 {[%clk 0:00:04]} 53. Kc4 {[%clk 0:00:05]}  Bc5 {[%clk 0:00:03]} 54. Bg3 {[%clk 0:00:05]}  Bb6 {[%clk 0:00:04]} 55. Be5 {[%clk 0:00:05]}  Ba7 {[%clk 0:00:04]} 56. Bf6 {[%clk 0:00:05]}  Bb6 {[%clk 0:00:05]} 57. Bg5 {[%clk 0:00:05]}  Bc7 {[%clk 0:00:04]} 58. Be3 {[%clk 0:00:06]}  Bd8 {[%clk 0:00:04]} 59. Bd4 {[%clk 0:00:06]}  Bc7 {[%clk 0:00:05]} 60. Bb2 {[%clk 0:00:06]}  Bb6 {[%clk 0:00:05]} 61. Bc1 {[%clk 0:00:06]}  Bc7 {[%clk 0:00:06]} 62. Kd4 {[%clk 0:00:06]}  Bb8 {[%clk 0:00:05]} 63. Bg5 {[%clk 0:00:06]}  Bd6 {[%clk 0:00:06]} 64. Bd8 {[%clk 0:00:06]}  Bb8 {[%clk 0:00:06]} 65. Bxa5 {[%clk 0:00:04]}  Bd6 {[%clk 0:00:04]} 66. Kc4 {[%clk 0:00:04]}  h5 {[%clk 0:00:04]} 67. Bxb4 {[%clk 0:00:04]}  Bc7 {[%clk 0:00:04]} 68. Bc3 {[%clk 0:00:05]}  Kd7 {[%clk 0:00:04]} 69. b4 {[%clk 0:00:05]}  Ke6 {[%clk 0:00:04]} 70. b5 {[%clk 0:00:05]}  f4 {[%clk 0:00:04]} 71. a4 {[%clk 0:00:06]}  Kf5 {[%clk 0:00:05]} 72. a5 {[%clk 0:00:06]}  Ke4 {[%clk 0:00:05]} 73. b6 {[%clk 0:00:06]}  Bd8 {[%clk 0:00:05]} 74. b7 {[%clk 0:00:07]}  Bc7 {[%clk 0:00:05]} 75. a6 {[%clk 0:00:07]}  Bb8 {[%clk 0:00:06]} 76. Bd4 {[%clk 0:00:06]}  f3 {[%clk 0:00:06]} 77. gxf3+ {[%clk 0:00:06]}  Kxf3 {[%clk 0:00:07]} 78. a7 {[%clk 0:00:07]}  Bxa7 {[%clk 0:00:07]} 79. Bxa7 {[%clk 0:00:08]}  h4 {[%clk 0:00:07]} 80. b8=Q {[%clk 0:00:07]}  Kg2 {[%clk 0:00:08]} 81. Qg8+ {[%clk 0:00:07]}  Kxh3 {[%clk 0:00:09]} 82. Bf2 {[%clk 0:00:07]}  Kh2 {[%clk 0:00:08]} 83. Qg4 {[%clk 0:00:05]} 1-0


[Site "https://www.chess.com"]